[Event "10th Cesme Open-A 2024"]
[Site "Cesme"]
[Date "2024.06.27"]
[Round "5"]
[White "Yildiz, Serdar Murat"]
[Black "Annaberdiyev, Meylis"]
[Result "0-1"]
[ECO "B41"]
[WhiteElo "2026"]
[BlackElo "2467"]
[Annotator "TA"]
[PlyCount "94"]
[EventDate "2024.06.23"]
[EventType "swiss"]
[EventCountry "TUR"]
[SourceTitle "playchess.com"]
[Source "ChessBase"]
[SourceQuality "1"]
[TimeControl "5400+30"]

{[%evp 14,94,58,48,47,44,58,48,62,53,60,58,70,58,65,64,60,59,57,52,52,52,66,50,56,64,207,210,272,333,320,316,269,284,311,291,444,465,569,532,581,585,716,366,358,252,225,224,368,355,318,164,193,188,182,0,60,-226,-203,-352,-295,-1335,-1203,-1154,-765,-4559,-1570,-4994,-4922,-29959,-29962,-29960,-29963,-29963,-29964,-7004,-5587,-5018,-5401,-29991,-29992,-29994,-29995]} 1. e4 {[%emt 0:01:00]} c5 {[%emt 0:03:00]} 2. Nf3 {[%emt 0:00:30]} e6 {[%emt 0:00:30]} 3. d4 {[%emt 0:00:30]} cxd4 {[%emt 0:00:00]} 4. Nxd4 {[%emt 0:00:00]} a6 {[%emt 0:00:00]} 5. c4 {[%emt 0:00:00]} Qc7 {[%emt 0:00:30]} 6. Nc3 {[%emt 0:00:00]} Nf6 {[%emt 0:00:00]} 7. a3 {[%emt 0:00:00]} b6 {[%emt 0:00:00]} 8. Be3 {[%emt 0:00:30]} Bb7 {[%emt 0:00:00]} 9. f3 {[%emt 0:00:00]} Nc6 {[%emt 0:00:00]} 10. Rc1 {[%emt 0:00:00]} Nxd4 {[%emt 0:01:30] White is slightly better.} 11. Bxd4 {[%emt 0:04:30]} Bd6 {[%emt 0:00:30]} 12. g3 {[%emt 0:01:30]} Bc5 {[%emt 0:03:30]} 13. b4 {[%emt 0:02:30]} Bxd4 {[%emt 0:01:30]} 14. Qxd4 {[%emt 0:00:00]} O-O {[%emt 0:00:00]} 15. Bd3 {[%emt 0:19:00]} d6 {[%emt 0:18:00]} 16. O-O {[%emt 0:00:30]} Rac8 {[%emt 0:01:30]} 17. Rfd1 {[%emt 0:05:30]} Rfd8 {[%emt 0:05:30]} 18. Na4 {[%emt 0:05:30]} Nd7 {[%emt 0:00:30]} 19. Be2 {[%emt 0:07:30]} Qc6 {[%emt 0:04:30]} (19... Bc6 $14 20. Nc3 Nf8) 20. b5 $1 $18 {[%emt 0:10:30]} axb5 {[%emt 0:00:30]} 21. cxb5 {[%emt 0:00:30]} Qxc1 {[%emt 0:00:30]} 22. Rxc1 {[%emt 0:00:30]} Rxc1+ {[%emt 0:00:00][%cal Bc8c1,Bc1h1,Bh1e1,Be1e4][%mdl 32]} 23. Kf2 {[%emt 0:00:00]} Nc5 {[%emt 0:00:00]} 24. Nxb6 {[%emt 0:11:00]} e5 {[%emt 0:00:00]} (24... Rc2 $142 25. a4 g6) 25. Qb2 {[%emt 0:05:30]} Rh1 {[%emt 0:00:00][%cal Oc5d3] White must now prevent ...Nd3+!} 26. Kg2 {[%emt 0:00:30]} Re1 {[%emt 0:00:00]} 27. a4 {[%emt 0:05:30]} f5 {[%emt 0:00:00]} 28. exf5 {[%emt 0:05:01]} e4 {[%emt 0:00:30][%cal Oe1e2] Threatens to win with ...Rxe2+!} 29. fxe4 {[%emt 0:00:40]} Bxe4+ {[%emt 0:10:30]} 30. Bf3 {[%emt 0:00:15] Bxe4 is the strong threat.} Re8 {[%emt 0:00:30]} (30... Bxf5 $142 31. Qd2 Rb1) 31. Bxe4 {[%emt 0:01:19]} R1xe4 {[%emt 0:00:30]} 32. Kh3 {[%emt 0:01:32]} (32. Qa2+ $142 Kh8 33. Kh3) 32... Re2 {[%emt 0:05:30]} 33. Qc1 {[%emt 0:07:39]} Ne4 {[%emt 0:01:30] aiming for ...Nf2+.} 34. Kg4 $2 {[%emt 0:02:46]} (34. Qc4+ Kh8 $11) (34. Nd7 $1 $18 {Hoping for b6.} Rd2 35. f6) 34... h5+ {[%emt 0:11:30]} ({Better is} 34... Rxh2 $11 35. Qc6 (35. Qc4+ Kh8 $11) 35... h5+ 36. Kf4 Nf6) 35. Kh3 $2 {[%emt 0:02:32][%mdl 8192]} (35. Kxh5 $14 {was the only good move.} Rxh2+ 36. Kg4 Nf6+ 37. Kf3) 35... Kh7 $1 $19 {[%emt 0:03:30] Strongly threatening ...g5.} 36. Nd5 {[%emt 0:00:43] [#]} (36. Nd7 $142 g5 37. Nf6+ (37. fxg6+ Kxg6 38. g4 Ng5+ 39. Kh4 R8e3 $19) 37... Kh6 (37... Nxf6 38. Qxg5 Rf8 39. b6 $11) 38. Nxe8 (38. Nxe4 $2 R8xe4 39. b6 Rxa4 $19) 38... Nf2+ 39. Kg2 Nd3+ 40. Kf1 Nxc1 41. Nxd6) 36... Rd2 $1 {[%emt 0:13:43]} 37. g4 $2 {[%emt 0:02:09]} (37. Nc7 Ng5+ 38. Kh4 Nf3+ 39. Kxh5 Rxh2+ 40. Kg4) 37... hxg4+ {[%emt 0:02:21]} 38. Kxg4 {[%emt 0:00:30]} Rxd5 {[%emt 0:00:02]} 39. Qb1 {[%emt 0:01:03] Dodges Rd3} Rd4 {[%emt 0:01:50]} (39... Nd2 $142 40. Qc2 Rd4+ 41. Kg3 Re2) 40. f6 {[%emt 0:00:39]} Kh6 {[%emt 0:03:22] ( -> ...Nc3+)} 41. f7 {[%emt 0:00:33]} Nd2+ {[%emt 0:02:44]} 42. Kg3 {[%emt 0:00:30]} Re3+ {[%emt 0:00:00]} (42... Nxb1 $2 43. fxe8=Q (43. fxe8=R $2 Rxa4 44. Rd8 Nc3 $19) 43... Kh7 44. b6 $18) 43. Kf2 {[%emt 0:00:25]} Rf3+ {[%emt 0:01:38]} (43... Nxb1 $2 44. Kxe3 (44. f8=R $2 Rb3 $19) (44. f8=Q $2 Ree4 $19) 44... Rxa4 45. f8=Q $18 (45. f8=R $2 Nc3 $19)) 44. Ke2 {[%emt 0:00:38] [#]} Rxf7 $1 {[%emt 0:00:02]} ({Worse is} 44... Nxb1 45. Kxf3 Nd2+ (45... Rxa4 $2 {too greedy.} 46. f8=Q $18) (45... Rd1 $2 46. Kg2 $18) 46. Ke3 Re4+ (46... Rxa4 $2 47. f8=Q $18) 47. Kxd2 $11) 45. Qc1 {[%emt 0:00:25]} Re7+ {[%emt 0:00:56]} 46. Kf2 {[%emt 0:00:02]} Rf4+ {[%emt 0:00:41]} 47. Kg2 {[%emt 0:01:06]} Re2+ {[%emt 0:00:11] Weighted Error Value: White=1.01/Black=0.34.  Loses game:     	White=1     	---        Missed win:     	White=1     	---        Mistake:       	White=3     	Black=4      Inaccurate:     	White=1     	---        OK:         	White=8     	Black=8      Best:        	White=5     	Black=3      Strong:       	White=1     	Black=2} 0-1

[Event "10th Cesme Open-A 2024"]
[Site "Cesme"]
[Date "2024.06.27"]
[Round "5"]
[White "Pereverzev, Timofei"]
[Black "Kamer, Kayra"]
[Result "0-1"]
[ECO "B29"]
[WhiteElo "2019"]
[BlackElo "2316"]
[Annotator "RC"]
[PlyCount "32"]
[EventDate "2024.06.23"]
[EventType "swiss"]
[EventCountry "TUR"]
[SourceTitle "playchess.com"]
[Source "ChessBase"]
[SourceQuality "1"]
[TimeControl "5400+30"]

1. e4 {[%emt 0:01:00]} c5 {[%emt 0:06:00]} 2. Nf3 {[%emt 0:00:00]} Nf6 {[%emt 0:01:30]} 3. e5 {[%emt 0:01:00]} Nd5 {[%emt 0:00:00]} 4. Nc3 {[%emt 0:02:30]} e6 {[%emt 0:03:00]} 5. Nxd5 {[%emt 0:00:30]} exd5 {[%emt 0:00:30]} 6. d4 {[%emt 0:00:30]} Nc6 {[%emt 0:00:30]} 7. dxc5 {[%emt 0:00:00]} Bxc5 {[%emt 0:00:00]} 8. Qxd5 {[%emt 0:00:00]} Qb6 {[%emt 0:00:00]} 9. Bc4 {[%emt 0:00:00]} Bxf2+ {[%emt 0:00:30]} 10. Ke2 {[%emt 0:00:00]} O-O {[%emt 0:00:00]} 11. Rf1 {[%emt 0:00:00]} Bc5 {[%emt 0:01:00]} 12. Ng5 {[%emt 0:00:00]} Nd4+ {[%emt 0:00:30]} 13. Kd1 {[%emt 0:22:30]} Ne6 {[%emt 0:13:30]} 14. Ne4 {[%emt 0:27:30]} d6 {[%emt 0:00:30]} 15. Bd3 {[%emt 0:01:30]} dxe5 {[%emt 0:00:30]} 16. Qxe5 {[%emt 0:00:30]} Bd4 {[%emt 0:00:30]} 0-1

[Event "10th Cesme Open-A 2024"]
[Site "Cesme"]
[Date "2024.06.27"]
[Round "5"]
[White "Emir, Emirhan"]
[Black "Anacak, Hasan Gunes"]
[Result "1/2-1/2"]
[ECO "A09"]
[WhiteElo "2006"]
[BlackElo "2095"]
[Annotator "RC"]
[PlyCount "61"]
[EventDate "2024.06.23"]
[EventType "swiss"]
[EventCountry "TUR"]
[SourceTitle "playchess.com"]
[Source "ChessBase"]
[SourceQuality "1"]
[TimeControl "5400+30"]

1. Nf3 {[%emt 0:01:00]} d5 {[%emt 0:01:00]} 2. g3 {[%emt 0:00:30]} g6 {[%emt 0:00:30]} 3. c4 {[%emt 0:00:00]} dxc4 {[%emt 0:01:30]} 4. Na3 {[%emt 0:00:00]} Bg7 {[%emt 0:05:30]} 5. Nxc4 {[%emt 0:00:00]} Nc6 {[%emt 0:00:30]} 6. d3 {[%emt 0:00:00]} e5 {[%emt 0:06:30]} 7. Bd2 {[%emt 0:00:00]} Nge7 {[%emt 0:06:30]} 8. Bg2 {[%emt 0:00:00]} O-O {[%emt 0:04:30]} 9. b4 {[%emt 0:00:30]} Be6 {[%emt 0:14:30]} 10. Rc1 {[%emt 0:01:30]} a6 {[%emt 0:11:30]} 11. O-O {[%emt 0:00:30]} h6 {[%emt 0:04:30]} 12. a4 {[%emt 0:01:30]} Bd5 {[%emt 0:02:30]} 13. Ne3 {[%emt 0:09:30]} Be6 {[%emt 0:08:30]} 14. Rc5 {[%emt 0:06:30]} Nd4 {[%emt 0:02:30]} 15. Nc4 {[%emt 0:05:30]} b6 {[%emt 0:05:30]} 16. Rxe5 {[%emt 0:13:30]} Bxc4 {[%emt 0:03:58]} 17. Rxe7 {[%emt 0:00:30]} Bb3 {[%emt 0:04:59]} 18. Qb1 {[%emt 0:00:30]} Bd5 {[%emt 0:01:52]} 19. Re3 {[%emt 0:05:30]} Nf5 {[%emt 0:00:09]} 20. Re4 {[%emt 0:00:30]} Bxe4 {[%emt 0:00:51]} 21. dxe4 {[%emt 0:00:30]} Nd4 {[%emt 0:00:30]} 22. Nxd4 {[%emt 0:00:30]} Qxd4 {[%emt 0:00:30]} 23. Be3 {[%emt 0:00:30]} Qc4 {[%emt 0:04:11]} 24. Rc1 {[%emt 0:08:30]} Qxe2 {[%emt 0:00:30]} 25. Bf1 {[%emt 0:00:00]} Qh5 {[%emt 0:01:08]} 26. Rxc7 {[%emt 0:03:00]} Rad8 {[%emt 0:00:21]} 27. Rc1 {[%emt 0:02:30]} Bd4 {[%emt 0:01:13]} 28. Qb3 {[%emt 0:15:30]} Qf3 {[%emt 0:00:05]} 29. Bg2 {[%emt 0:00:30]} Qe2 {[%emt 0:00:23]} 30. Bf1 {[%emt 0:02:30]} Qf3 {[%emt 0:00:04]} 31. Bg2 {[%emt 0:00:00]} 1/2-1/2

[Event "10th Cesme Open-A 2024"]
[Site "Cesme"]
[Date "2024.06.27"]
[Round "5"]
[White "Danaci, Ege"]
[Black "Demirtas, Alper"]
[Result "0-1"]
[ECO "A28"]
[WhiteElo "2005"]
[BlackElo "2057"]
[Annotator "RC"]
[PlyCount "104"]
[EventDate "2024.06.23"]
[EventType "swiss"]
[EventCountry "TUR"]
[SourceTitle "playchess.com"]
[Source "ChessBase"]
[SourceQuality "1"]
[TimeControl "5400+30"]

1. c4 {[%emt 0:03:00]} e5 {[%emt 0:04:00]} 2. Nc3 {[%emt 0:01:30]} Nc6 {[%emt 0:01:30]} 3. e3 {[%emt 0:01:30]} Nf6 {[%emt 0:01:30]} 4. Nf3 {[%emt 0:04:30]} Be7 {[%emt 0:04:30]} 5. a3 {[%emt 0:04:30]} a5 {[%emt 0:02:30]} 6. Qc2 {[%emt 0:03:30]} O-O {[%emt 0:02:30]} 7. Nd5 {[%emt 0:04:30]} d6 {[%emt 0:02:30]} 8. b3 {[%emt 0:11:30]} h6 {[%emt 0:14:30]} 9. h4 {[%emt 0:06:30]} Nb8 {[%emt 0:19:30]} 10. Bb2 {[%emt 0:13:30]} c6 {[%emt 0:00:30]} 11. Nxf6+ {[%emt 0:04:30]} Bxf6 {[%emt 0:00:30]} 12. Bd3 {[%emt 0:00:30]} Na6 {[%emt 0:06:30]} 13. O-O-O {[%emt 0:11:30]} Nc5 {[%emt 0:12:30]} 14. Bh7+ {[%emt 0:11:19]} Kh8 {[%emt 0:00:00]} 15. Bf5 {[%emt 0:08:04]} Bxf5 {[%emt 0:17:01]} 16. Qxf5 {[%emt 0:00:01]} g6 {[%emt 0:00:47]} 17. Qc2 {[%emt 0:00:30]} e4 {[%emt 0:00:21]} 18. Nd4 {[%emt 0:00:37]} Nd3+ {[%emt 0:00:34]} 19. Kb1 {[%emt 0:01:00]} Nxb2 {[%emt 0:01:32]} 20. Kxb2 {[%emt 0:00:30]} c5 {[%emt 0:00:09]} 21. Qxe4 {[%emt 0:00:05]} cxd4 {[%emt 0:00:12]} 22. h5 {[%emt 0:00:59]} g5 {[%emt 0:01:12]} 23. Ka2 {[%emt 0:01:10]} a4 {[%emt 0:01:28]} 24. b4 {[%emt 0:00:06]} Qc8 {[%emt 0:00:52]} 25. d3 {[%emt 0:01:16]} dxe3 {[%emt 0:01:05]} 26. fxe3 {[%emt 0:00:30]} Qe6 {[%emt 0:00:22]} 27. Qxe6 {[%emt 0:00:55]} fxe6 {[%emt 0:00:03]} 28. g4 {[%emt 0:00:14]} Bc3 {[%emt 0:00:59]} 29. Rh2 {[%emt 0:00:14]} Bg7 {[%emt 0:01:37]} 30. Re2 {[%emt 0:01:04]} Rac8 {[%emt 0:00:25]} 31. Rg1 {[%emt 0:02:24]} Rf3 {[%emt 0:00:11]} 32. Kb1 {[%emt 0:00:43]} Rcf8 {[%emt 0:00:57]} 33. Kc2 {[%emt 0:00:36]} Rf2 {[%emt 0:00:45]} 34. Rg2 {[%emt 0:00:10]} Rxg2 {[%emt 0:00:27]} 35. Rxg2 {[%emt 0:00:30]} Rf3 {[%emt 0:00:01]} 36. Re2 {[%emt 0:00:34]} Rg3 {[%emt 0:01:28]} 37. d4 {[%emt 0:00:30]} Rxg4 {[%emt 0:00:30]} 38. Rf2 {[%emt 0:00:30]} Kg8 {[%emt 0:00:00]} 39. Kd3 {[%emt 0:00:00]} Rg1 {[%emt 0:00:00]} 40. c5 {[%emt 0:00:17]} dxc5 {[%emt 0:00:46]} 41. bxc5 {[%emt 0:00:04]} Rb1 {[%emt 0:01:14]} 42. Ke4 {[%emt 0:00:09]} Rb3 {[%emt 0:00:08]} 43. Rc2 {[%emt 0:01:00]} Rxa3 {[%emt 0:00:30]} 44. Rc4 {[%emt 0:00:00]} g4 {[%emt 0:01:11]} 45. Rb4 {[%emt 0:00:00]} Rb3 {[%emt 0:00:35]} 46. Rxa4 {[%emt 0:00:00]} Bf6 {[%emt 0:00:06]} 47. Ra8+ {[%emt 0:00:48]} Kf7 {[%emt 0:00:18]} 48. Rb8 {[%emt 0:01:00]} Bg5 {[%emt 0:00:45]} 49. d5 {[%emt 0:00:10]} exd5+ {[%emt 0:00:59]} 50. Kf5 {[%emt 0:00:06]} Rb5 {[%emt 0:00:25]} 51. Rc8 {[%emt 0:00:45]} g3 {[%emt 0:00:30]} 52. Rc7+ {[%emt 0:00:00]} Be7 {[%emt 0:00:00]} 0-1